bitfinex/quotes_SOLUSD_20251119
["timestamp","ask_amount","ask_price","bid_price","bid_amount"]
[1763521769364,9.78882769,142.17,142.13,3.57169583]
[1763521769681,9.78882769,142.15,142.07,0.51]
[1763521769879,9.78882769,142.15,142.1,3.57169583]
[1763521770077,9.78882769,142.13,142.1,3.57169583]
[1763521770470,0.68,142.12,142.1,3.57169583]
[1763521775262,0.68,142.14,142.1,3.57169583]
[1763521775462,0.68,142.14,142.12,3.57169583]
[1763521776795,0.68,142.14,142.11,3.57169583]
[1763521780293,0.68,142.14,142.1,3.57169583]
[1763521780704,0.68,142.14,142.12,3.57169583]
[1763521783082,0.68,142.14,142.11,3.57169583]
[1763521784096,0.68,142.14,142.12,3.57169583]
[1763521785299,0.68,142.14,142.11,3.57169583]
[1763521786299,0.68,142.14,142.12,3.57169583]
[1763521786985,0.68,142.14,142.11,3.57169583]
[1763521788194,0.68,142.14,142.12,3.57169583]
[1763521789904,9.78882769,142.16,142.12,3.57169583]
[1763521790087,0.7,142.15,142.12,3.57169583]
[1763521790497,0.7,142.18,142.14,3.57169583]
[1763521790700,0.7,142.18,142.16,3.57169583]
[1763521790903,0.7,142.18,142.16,2.28656616]
[1763521791399,0.2,142.19,142.17,2.28656616]
[1763521791996,0.9,142.19,142.18,2.28656616]
[1763521792202,10.68882769,142.19,142.18,2.28656616]
[1763521793709,0.2,142.19,142.18,2.28656616]
[1763521794207,0.2,142.19,142.18,2.79656616]
[1763521794991,0.2,142.19,142.18,2.28656616]
[1763521795386,0.2,142.19,142.18,2.79656616]
[1763521797284,0.2,142.19,142.18,6.99656616]
[1763521797906,2.0,142.11,142.02,0.1]
[1763521798208,9.78882769,142.02,141.96,0.1]
[1763521798379,9.78882769,141.98,141.96,0.1]
[1763521798784,9.78882769,142.0,141.96,0.1]
[1763521799006,9.78882769,141.98,141.96,0.1]
[1763521800209,0.7,141.98,141.96,0.1]
[1763521800405,18.12096,141.97,141.96,0.1]
[1763521800613,23.43013952,141.97,141.96,0.1]
[1763521800916,24.13013952,141.97,141.96,0.1]
[1763521801413,33.91896721,141.97,141.96,0.1]
[1763521805296,28.60978769,141.97,141.96,0.1]
[1763521805622,33.91896721,141.97,141.96,0.1]
[1763521814818,9.78882769,141.97,141.96,0.1]
[1763521815017,15.09800721,141.97,141.96,0.1]
[1763521815222,33.21896721,141.97,141.96,0.1]
[1763521815424,33.92896721,141.97,141.96,0.1]
[1763521818000,33.21896721,141.97,141.96,0.1]
[1763521818623,27.90978769,141.97,141.96,0.1]
[1763521819535,33.92896721,141.97,141.96,0.1]
[1763521820026,33.21896721,141.97,141.96,0.1]
[1763521820905,30.20430452,141.97,141.96,0.1]
[1763521822628,30.90778675,141.97,141.96,0.1]
[1763521823139,10.49230992,141.97,141.96,0.76]
[1763521823342,10.49230992,141.97,141.96,0.1]
[1763521823515,9.78882769,141.97,141.96,0.1]
[1763521823834,11.19230992,141.97,141.96,0.1]
[1763521824039,13.48682675,141.97,141.96,0.1]
[1763521824419,12.78682675,141.97,141.96,0.1]
[1763521825238,10.49230992,141.97,141.96,0.1]
[1763521825538,13.48682675,141.97,141.96,0.1]
[1763521825921,35.86778675,141.97,141.96,0.1]
[1763521826432,10.49230992,141.97,141.96,0.76]
[1763521826743,9.78882769,141.97,141.96,0.76]
[1763521831238,9.78882769,141.98,141.96,0.76]
[1763521831442,0.70348223,141.97,141.96,0.76]
[1763521832639,10.49230992,141.99,141.96,3.05451683]
[1763521832853,9.78882769,142.03,141.97,2.29451683]
[1763521833064,0.7,142.11,142.02,2.29451683]
[1763521833223,2.29451683,142.09,142.03,2.29451683]
[1763521833423,9.78882769,142.07,142.02,2.29451683]
[1763521833628,0.70348223,142.06,142.03,0.66]
[1763521834557,10.48882769,142.05,142.0,2.95451683]
[1763521834727,9.78882769,142.03,142.0,0.66]
[1763521834933,0.70348223,142.02,142.01,0.66]
[1763521837149,0.70348223,142.05,142.01,0.66]
[1763521838064,6.00865146,142.05,142.01,0.66]
[1763521838566,15.09399692,142.04,142.01,0.66]
[1763521838861,0.70348223,142.03,142.01,0.66]
[1763521845459,0.70348223,142.06,142.01,4.92]
[1763521845653,9.78882769,142.05,142.01,5.96516923]
[1763521845854,0.70348223,142.04,142.02,0.67]
[1763521846149,0.70348223,142.04,142.0,9.56516923]
[1763521846349,0.70348223,142.04,142.01,0.67]
[1763521846735,0.70348223,142.05,142.01,0.67]
[1763521847477,9.78882769,141.98,141.96,0.1]
[1763521848641,9.78882769,141.98,141.96,0.77]
[1763521853043,0.70348223,141.99,141.96,0.77]
[1763521854960,0.70348223,142.0,141.96,0.77]
[1763521855579,1.37348223,142.0,141.96,0.77]
[1763521855875,10.24716079,142.0,141.96,0.77]
[1763521856078,9.57716079,142.0,141.96,0.77]
[1763521856484,0.70348223,142.0,141.96,0.77]
[1763521857455,4.95674422,142.0,141.96,0.77]
[1763521858466,4.25326199,141.99,141.96,0.1]
[1763521858971,0.70348223,141.98,141.96,0.1]
[1763521859348,0.70348223,141.98,141.96,0.77]
[1763521860476,0.70348223,141.99,141.96,0.77]
[1763521860853,0.70348223,142.01,141.96,4.35326199]
[1763521861268,0.70348223,142.01,141.97,0.67]
[1763521862461,3.58326199,142.0,141.96,0.1]
[1763521862670,0.70348223,141.99,141.96,0.77]
[1763521866595,0.70348223,141.99,141.96,0.1]
[1763521866777,4.25326199,141.98,141.96,0.1]
[1763521867083,0.70348223,141.97,141.96,0.1]
[1763521867255,1.37348223,141.97,141.96,0.1]
[1763521867456,4.95674422,141.97,141.96,0.1]
[1763521868078,1.37348223,141.97,141.96,0.1]
[1763521868265,11.16230992,141.97,141.96,0.1]
[1763521868456,14.74557191,141.97,141.96,0.1]
[1763521868782,32.86653191,141.97,141.88,0.67]
[1763521869082,31.49304968,141.93,141.86,0.77]
[1763521869259,31.49304968,141.93,141.86,4.35326199]
[1763521869777,31.49304968,141.93,141.87,0.67]
[1763521869964,31.49304968,141.93,141.87,4.25326199]
[1763521869965,27.90978769,141.93,141.87,4.25326199]
[1763521870164,27.90978769,141.93,141.87,0.67]
[1763521870372,27.90978769,141.93,141.87,4.25326199]
[1763521870679,31.49304968,141.93,141.87,0.67]
[1763521870872,9.78882769,141.96,141.88,4.25326199]
[1763521871082,9.78882769,141.94,141.88,8.49326199]
[1763521871273,9.78882769,141.94,141.89,0.67]
[1763521871979,0.67,141.93,141.89,0.67]
[1763521872650,4.25326199,141.93,141.89,0.67]
[1763521874482,3.58326199,141.93,141.88,4.24]
[1763521874652,13.37208968,141.91,141.87,0.69]
[1763521874857,3.58326199,141.9,141.87,0.69]
[1763521875382,9.78882769,141.87,141.86,0.1]
[1763521875688,17.61208968,141.87,141.86,0.1]
[1763521875985,18.33208968,141.87,141.86,0.1]
[1763521877087,18.33208968,141.87,141.8,2.42593088]
[1763521877288,13.37208968,141.83,141.8,1.73593088]
[1763521877964,9.78882769,141.86,141.8,1.73593088]
[1763521878180,9.78882769,141.83,141.8,1.73593088]
[1763521881082,9.78882769,141.82,141.8,1.73593088]
[1763521882475,3.58326199,141.82,141.8,1.73593088]
[1763521885581,9.78882769,141.82,141.8,1.73593088]
[1763521885965,0.70348223,141.82,141.8,1.73593088]
[1763521887797,10.49230992,141.82,141.8,1.73593088]
[1763521890274,14.07557191,141.82,141.8,1.73593088]
[1763521891897,10.49230992,141.82,141.8,1.73593088]
[1763521892098,10.49230992,141.82,141.8,2.44593088]
[1763521892300,10.49230992,141.82,141.8,1.73593088]
[1763521892687,14.07557191,141.82,141.8,1.73593088]
[1763521893505,32.19653191,141.82,141.8,1.73593088]
[1763521894883,28.61326992,141.82,141.8,1.73593088]
[1763521895098,28.61326992,141.82,141.8,1.23593088]
[1763521895302,32.19653191,141.82,141.8,1.23593088]
[1763521895802,28.61326992,141.82,141.8,0.73593088]
[1763521895991,32.19653191,141.82,141.8,0.73593088]
[1763521896300,28.61326992,141.82,141.8,0.73593088]
[1763521896612,28.61326992,141.82,141.81,0.71]
[1763521896774,0.70348223,141.82,141.81,0.71]
[1763521896968,0.70348223,141.85,141.81,4.29326199]
[1763521897169,0.70348223,141.88,141.84,3.58326199]
[1763521897396,0.70348223,141.91,141.86,3.58326199]
[1763521897579,9.78882769,141.89,141.85,3.58326199]
[1763521897773,0.70348223,141.88,141.83,4.29326199]
[1763521897983,0.70348223,141.89,141.85,3.58326199]
[1763521898174,0.70348223,141.95,141.87,3.58326199]
[1763521898376,0.70348223,141.95,141.89,3.58326199]
[1763521898604,3.58326199,141.93,141.88,4.24]
[1763521898799,4.28674422,141.92,141.85,0.71]
[1763521899001,9.78882769,141.9,141.85,0.71]
[1763521899186,0.70348223,141.89,141.85,0.71]
[1763521900092,4.94674422,141.89,141.85,0.71]
[1763521900408,4.28674422,141.89,141.85,0.71]
[1763521900986,0.70348223,141.89,141.85,0.71]
[1763521902100,4.94674422,141.89,141.85,0.71]
[1763521902485,4.28674422,141.89,141.85,0.71]
[1763521902779,27.90978769,141.87,141.83,0.67]
[1763521902984,0.70348223,141.86,141.83,0.67]
[1763521907322,9.78882769,141.85,141.83,0.67]
[1763521907491,0.70348223,141.84,141.81,0.67]
[1763521908398,0.70348223,141.84,141.81,4.91]
[1763521908604,10.49230992,141.85,141.81,4.91]
[1763521908802,10.49230992,141.85,141.82,0.67]
[1763521909296,0.70348223,141.86,141.82,0.67]
[1763521909711,9.78882769,141.87,141.82,0.67]
[1763521910299,0.70348223,141.88,141.82,4.25326199]
[1763521910787,9.78882769,141.87,141.83,0.67]
[1763521911114,0.70348223,141.86,141.83,0.67]
[1763521912029,0.70348223,141.86,141.8,4.31919287]
[1763521912200,0.70348223,141.86,141.8,0.73593088]
[1763521912201,13.37208968,141.81,141.8,0.73593088]
[1763521912401,31.49304968,141.81,141.8,0.73593088]
[1763521912607,32.18304968,141.81,141.8,0.73593088]
[1763521913118,28.59978769,141.81,141.8,0.73593088]
[1763521913297,32.18304968,141.81,141.8,0.73593088]
[1763521913616,31.49304968,141.81,141.8,0.73593088]
[1763521914819,30.20962256,141.81,141.8,0.73593088]
[1763521916933,27.90978769,141.81,141.8,0.73593088]
[1763521917099,30.89962256,141.81,141.8,0.73593088]
[1763521920630,0.69,141.87,141.8,1.40593088]
[1763521920806,3.0033171,141.86,141.8,1.40593088]
[1763521920998,0.70348223,141.86,141.81,0.67]
[1763521921204,20.42079487,141.87,141.81,0.67]
[1763521921404,0.70348223,141.86,141.81,0.67]
[1763521922924,0.70348223,141.86,141.81,2.96983487]
[1763521923130,3.0033171,141.92,141.84,2.29983487]
[1763521923423,18.82444223,141.92,141.86,2.29983487]
[1763521923727,3.0033171,141.92,141.86,2.29983487]
[1763521924021,21.1242771,141.92,141.87,0.67]
[1763521926530,2.29983487,141.91,141.87,0.67]
[1763521926829,0.70348223,141.9,141.87,0.67]
[1763521927027,0.70348223,141.91,141.87,0.67]
[1763521930029,10.49230992,141.91,141.87,0.67]
[1763521931113,15.79401991,141.9,141.85,0.67]
[1763521931308,0.70348223,141.89,141.83,27.67615222]
[1763521931532,0.70348223,141.89,141.86,0.67]
[1763521932023,9.78882769,141.88,141.84,0.67]
[1763521932215,0.70348223,141.87,141.85,0.67]
[1763521933146,15.10401991,141.86,141.82,0.72]
[1763521933443,15.81401991,141.92,141.86,0.72]
[1763521933633,9.78882769,141.89,141.83,5.31519222]
[1763521933835,9.78882769,141.89,141.84,5.31519222]
[1763521934209,9.78882769,141.89,141.85,0.72]
[1763521935114,15.10401991,141.87,141.8,6.0511231]
[1763521935316,15.80750214,141.87,141.81,4.96]
[1763521935518,16.51750214,141.87,141.81,4.96]
[1763521935712,16.51750214,141.87,141.82,0.72]
[1763521939441,0.71,141.86,141.82,0.72]
[1763521940120,9.78882769,141.85,141.82,0.72]
[1763521940521,15.80750214,141.87,141.82,0.72]
[1763521940815,11.20230992,141.87,141.82,0.72]
[1763521942651,16.51750214,141.87,141.82,0.72]
[1763521942828,11.20230992,141.87,141.82,0.72]
[1763521943664,0.70348223,141.87,141.82,6.03519222]
[1763521943954,0.70348223,141.88,141.84,5.31519222]
[1763521944324,0.70348223,141.88,141.85,0.66]
[1763521944721,0.70348223,141.9,141.85,5.97519222]
[1763521944921,0.70348223,141.9,141.85,10.19519222]
[1763521945144,0.70348223,141.91,141.86,0.66]
[1763521947351,0.70348223,141.91,141.86,2.9559669]
[1763521947657,0.70348223,141.91,141.87,0.66]
[1763521950159,18.12096,141.92,141.88,2.2959669]
[1763521950354,9.78882769,141.93,141.89,0.66]
[1763521950533,9.78882769,141.93,141.89,2.9559669]
[1763521951057,9.78882769,141.93,141.9,0.66]
[1763521953734,18.82444223,141.94,141.9,0.66]
[1763521955358,10.50882769,141.93,141.9,0.66]
[1763521955542,0.70348223,141.92,141.88,2.2959669]
[1763521955750,0.70348223,141.92,141.89,0.66]
[1763521958337,9.78882769,141.91,141.87,0.66]
[1763521958542,0.70348223,141.9,141.87,0.66]
[1763521963971,10.48882769,141.89,141.85,4.22]
[1763521964183,12.08479459,141.87,141.82,0.72]
[1763521964473,2.2959669,141.86,141.82,0.72]
[1763521964770,9.78882769,141.85,141.82,0.72]
[1763521965171,12.08479459,141.85,141.82,0.72]
[1763521965370,12.08479459,141.85,141.8,0.73593088]
[1763521965371,9.78882769,141.83,141.8,0.73593088]
[1763521965575,12.08479459,141.83,141.8,0.73593088]
[1763521965876,12.78479459,141.83,141.8,0.73593088]
[1763521966084,12.78479459,141.83,141.8,1.45593088]
[1763521966666,12.78479459,141.83,141.8,0.73593088]
[1763521966887,0.7,141.82,141.8,0.73593088]
[1763521968369,12.78479459,141.83,141.8,0.73593088]
[1763521969386,10.48882769,141.83,141.8,0.73593088]
[1763521969585,12.78479459,141.83,141.8,0.73593088]
[1763521969782,10.48882769,141.83,141.8,0.73593088]
[1763521971481,9.78882769,141.83,141.8,1.45593088]
[1763521971666,4.92348223,141.84,141.8,1.45593088]
[1763521971866,0.70348223,141.84,141.81,0.72]
[1763521972562,18.12096,141.85,141.81,0.72]
[1763521972867,4.22,141.86,141.81,0.72]
[1763521973082,10.49230992,141.86,141.81,3.0159669]
[1763521973479,10.49230992,141.86,141.82,0.72]
[1763521973663,0.70348223,141.86,141.82,0.72]
[1763521976075,18.82444223,141.87,141.82,0.72]
[1763521976993,0.70348223,141.87,141.82,4.30965711]
[1763521977498,0.70348223,141.87,141.83,0.72]
[1763521980095,4.99313934,141.87,141.83,0.72]
[1763521981578,0.70348223,141.87,141.83,0.72]
[1763521982073,1.40348223,141.87,141.83,0.72]
[1763521982500,0.70348223,141.87,141.83,0.72]
[1763521987834,0.70348223,141.87,141.83,4.30965711]
[1763521988111,21.71061711,141.89,141.83,4.30965711]
[1763521988310,0.70348223,141.88,141.84,0.72]
[1763521989010,4.99313934,141.88,141.84,0.72]
[1763521990708,9.78882769,141.87,141.84,0.72]
[1763521990911,0.70348223,141.86,141.84,0.72]
[1763521994296,0.70348223,141.86,141.84,4.30965711]
[1763521994490,18.12096,141.9,141.85,3.58965711]
[1763521994816,3.58965711,141.96,141.89,3.58965711]
[1763521995022,0.70348223,141.95,141.9,3.58965711]
[1763521995394,0.70348223,141.95,141.91,0.67]
[1763521995395,1.38348223,141.95,141.91,0.67]
[1763521996010,0.70348223,141.95,141.91,0.67]
[1763521996694,1.38348223,141.95,141.91,0.67]
[1763521996894,4.97313934,141.95,141.91,0.67]
[1763521997706,4.29313934,141.95,141.91,0.67]
[1763521998218,4.97313934,141.95,141.91,0.67]
[1763521999022,1.38348223,141.95,141.91,0.67]
[1763522001823,0.70348223,141.95,141.91,0.67]
[1763522002516,1.42348223,141.95,141.91,0.67]
[1763522004132,0.70348223,141.95,141.91,0.67]
[1763522004310,0.2,141.97,141.92,3.58965711]
[1763522004634,0.2,141.97,141.93,3.58965711]
[1763522005007,0.2,141.97,141.94,0.67]
[1763522005419,0.2,141.97,141.96,3.58965711]
[1763522005822,0.2,141.97,141.96,4.25965711]
[1763522006795,0.2,141.97,141.96,8.47965711]
[1763522007421,0.2,141.97,141.96,4.25965711]
[1763522007998,0.2,141.97,141.96,8.47965711]
[1763522008413,0.2,141.97,141.96,4.25965711]
[1763522008625,0.2,141.97,141.96,8.47965711]
[1763522009117,0.2,141.97,141.96,4.25965711]
[1763522009301,0.2,141.97,141.96,8.47965711]
[1763522010719,0.2,142.02,141.96,8.47965711]
[1763522010920,0.2,142.02,142.0,3.58965711]
[1763522011241,0.2,142.02,142.0,7.80965711]
[1763522011400,0.2,142.02,142.01,0.67]
[1763522012416,0.2,142.02,142.01,4.89]
[1763522013006,0.2,142.02,142.01,8.47965711]
[1763522014624,0.2,142.02,142.01,4.25965711]
[1763522014927,0.2,142.02,142.01,8.47965711]
[1763522015635,0.2,142.02,142.01,4.25965711]
[1763522015810,0.2,142.02,142.01,4.89]
[1763522016135,0.2,142.02,141.99,4.89]
[1763522016336,0.2,142.02,141.99,8.47965711]
[1763522016511,0.2,142.02,142.0,0.67]
[1763522017221,0.2,142.02,141.99,4.22]
[1763522017429,0.92,142.02,141.99,4.89]
[1763522017932,0.2,142.02,141.99,4.89]
[1763522018228,0.2,142.02,141.99,8.47965711]
[1763522018403,0.90348223,142.02,141.99,8.47965711]
[1763522019733,0.90348223,142.02,141.99,4.89]
[1763522020526,0.90348223,142.02,142.0,0.67]
[1763522020729,0.2,142.02,142.0,0.67]
[1763522021831,0.92,142.02,141.99,4.22]
[1763522022131,0.92,142.02,141.99,4.89]
[1763522022732,0.2,142.02,142.0,0.71]
[1763522023319,0.2,142.02,142.0,4.29965711]
[1763522023715,0.2,142.02,142.01,0.71]
[1763522024129,0.2,142.02,141.99,8.51965711]
[1763522024334,0.2,142.02,142.0,0.71]
[1763522029528,0.2,142.02,142.0,4.93]
[1763522029727,0.2,142.02,142.0,0.71]
[1763522029930,0.2,142.02,142.0,4.93]
[1763522030415,0.2,142.02,142.0,0.71]
[1763522030617,0.2,142.02,142.0,4.93]
[1763522031045,0.2,142.02,142.0,0.71]
[1763522031217,0.2,142.02,142.0,4.93]
[1763522031417,0.2,142.02,142.0,0.71]
[1763522031927,0.2,142.02,142.0,4.93]
[1763522032107,0.2,142.02,142.0,0.71]
[1763522032314,0.2,142.02,142.01,4.22]
[1763522032918,0.2,142.02,142.0,0.71]
[1763522033119,0.2,142.02,142.0,4.93]
[1763522034352,0.72,142.01,141.98,18.12096]
[1763522034517,0.72,142.01,141.99,4.22]
[1763522035047,0.90348223,142.02,141.99,4.93]
[1763522035249,1.62348223,142.02,141.99,4.93]
[1763522036018,0.90348223,142.02,142.0,0.71]
[1763522036223,0.2,142.02,142.0,0.71]
[1763522038320,0.2,142.02,141.99,4.22]
[1763522038540,0.92,142.02,141.99,4.22]
[1763522038733,1.62348223,142.02,141.99,4.22]
[1763522039145,1.62348223,142.02,141.99,4.93]
[1763522039748,0.90348223,142.02,142.0,0.71]
[1763522039958,0.2,142.02,142.0,0.71]
[1763522040121,0.2,142.02,142.0,3.00176869]
[1763522040444,0.2,142.02,142.01,0.71]
[1763522040745,0.2,142.02,142.0,0.71]
[1763522041835,0.90348223,142.02,141.99,4.22]
[1763522042021,0.90348223,142.02,141.99,4.93]
[1763522042746,1.62348223,142.02,141.99,4.93]
[1763522043336,1.62348223,142.02,141.99,0.71]
[1763522043547,1.62348223,142.02,141.98,4.22]
[1763522043852,1.62348223,142.02,141.98,4.93]
[1763522044140,1.62348223,142.02,141.98,4.22]
[1763522044322,1.62348223,142.02,141.98,4.93]
[1763522045454,1.62348223,142.02,141.98,4.22]
[1763522045652,1.62348223,142.02,141.99,0.71]
[1763522046356,0.72,142.01,141.98,4.22]
[1763522046838,9.78882769,142.01,141.98,4.93]
[1763522047154,10.50882769,142.01,141.98,4.93]
[1763522048451,0.90348223,142.02,141.98,4.22]
[1763522048641,19.04096,142.02,141.99,0.71]
[1763522049251,18.32096,142.02,141.99,0.71]
[1763522049449,0.2,142.02,141.99,0.71]
[1763522049754,0.2,142.02,141.98,4.22]
[1763522049755,0.92,142.02,141.98,4.22]
[1763522049941,0.70348223,142.01,141.98,4.93]
[1763522050337,1.42348223,142.01,141.98,4.22]
[1763522050961,1.62348223,142.02,141.98,4.93]
[1763522051465,19.74444223,142.02,141.98,4.22]
[1763522051635,0.72,142.01,141.98,4.22]
[1763522052032,0.90348223,142.02,141.99,0.71]
[1763522052533,1.60348223,142.02,141.99,0.71]
[1763522052963,1.60348223,142.02,141.98,4.22]
[1763522053164,1.60348223,142.02,141.98,4.9]
[1763522053862,10.48882769,142.01,141.98,4.22]
[1763522054047,0.70348223,142.0,141.98,4.22]
[1763522054362,1.40348223,142.0,141.98,4.22]
[1763522054661,1.40348223,142.0,141.95,4.9]
[1763522054841,0.7,141.99,141.95,4.9]
[1763522055040,0.70348223,142.0,141.95,4.22]
[1763522055244,1.40348223,142.0,141.96,0.68]
[1763522055664,0.70348223,142.0,141.96,0.68]
[1763522056039,1.40348223,142.0,141.96,0.68]
[1763522056269,0.70348223,142.0,141.94,2.29176869]
[1763522056558,2.29176869,141.96,141.9,21.56960675]
[1763522056755,2.29176869,141.97,141.91,0.68]
[1763522056928,12.78059638,141.98,141.91,2.97176869]
[1763522057133,10.48882769,141.98,141.92,2.29176869]
[1763522057341,9.78882769,141.98,141.92,2.97176869]
[1763522057541,0.7,141.97,141.92,2.97176869]
[1763522058065,0.7,141.97,141.92,0.68]
[1763522058248,0.7,141.97,141.91,2.29176869]
[1763522058449,0.7,141.97,141.93,0.68]
[1763522058662,0.63737417,141.97,141.93,0.68]
[1763522060248,2.92914286,141.97,141.93,0.68]
[1763522060753,2.92914286,141.97,141.92,4.22]
[1763522060754,0.7,141.96,141.92,4.22]
[1763522060961,0.7,141.96,141.92,4.9]
[1763522061773,2.99176869,141.96,141.92,4.9]
[1763522062148,2.29176869,141.95,141.88,18.12096]
[1763522062348,2.29176869,141.9,141.87,21.20366116]
[1763522062567,9.78882769,141.89,141.87,0.69]
[1763522062747,0.65,141.9,141.85,2.29176869]
[1763522062948,10.43882769,141.91,141.86,0.69]
[1763522063147,12.73059638,141.91,141.86,0.69]
[1763522063954,0.65,141.9,141.86,0.69]
[1763522064149,12.08059638,141.91,141.86,0.69]
[1763522064150,9.78882769,141.91,141.86,0.69]
[1763522064349,10.43882769,141.91,141.86,0.69]
[1763522064552,9.78882769,141.89,141.84,0.69]
[1763522065272,9.78882769,141.89,141.84,4.91]
[1763522065566,12.73059638,141.89,141.84,0.69]
[1763522065862,12.73059638,141.89,141.85,0.69]
[1763522066062,10.43882769,141.89,141.85,0.69]
[1763522067766,9.78882769,141.91,141.85,2.98176869]
[1763522067945,9.78882769,141.91,141.85,64.78176869]
[1763522068145,9.78882769,141.91,141.86,2.98176869]
[1763522068347,9.78882769,141.91,141.86,0.69]
[1763522068546,9.78882769,141.91,141.87,0.69]
[1763522068846,9.78882769,141.91,141.85,64.09176869]
[1763522068847,12.73059638,141.91,141.86,0.69]
[1763522069256,0.65,141.9,141.86,0.69]
[1763522069470,12.73059638,141.91,141.86,0.69]
[1763522069773,0.70348223,141.92,141.86,62.49]
[1763522069950,9.78882769,141.95,141.89,2.29176869]
[1763522070154,9.78882769,141.95,141.89,6.51176869]
[1763522070369,11.14230992,141.95,141.9,0.69]
[1763522071354,0.70348223,141.95,141.9,2.98176869]
[1763522071554,20.48096,141.96,141.91,2.29176869]
[1763522071753,18.82444223,141.96,141.91,2.98176869]
[1763522071969,18.82444223,141.96,141.92,0.69]
[1763522072163,19.47444223,141.96,141.92,0.69]
[1763522072677,0.65,141.95,141.92,0.69]
[1763522073268,0.65,141.95,141.9,0.69]
[1763522073571,0.65,141.95,141.89,2.29176869]
[1763522073572,0.65,141.95,141.91,0.69]
[1763522075854,18.82444223,141.96,141.91,0.69]
[1763522076062,0.65,141.95,141.91,0.69]
[1763522076570,18.12096,141.96,141.91,62.49]
[1763522076871,18.12096,141.96,141.91,69.00176869]
[1763522077077,2.94176869,141.98,141.92,0.69]
[1763522077377,7.86525092,141.98,141.92,0.69]
[1763522077563,0.65,141.97,141.92,0.69]
[1763522079181,0.70348223,141.96,141.92,0.69]
[1763522079579,0.70348223,141.96,141.92,62.49]
[1763522079778,3.64525092,141.96,141.91,66.02]
[1763522079982,3.64525092,141.96,141.91,66.71]
[1763522080281,0.65,141.95,141.92,0.69]
[1763522080479,0.70348223,141.94,141.92,0.69]
[1763522080879,1.35348223,141.95,141.92,0.69]
[1763522082283,3.64525092,141.96,141.92,0.69]
[1763522082461,3.66525092,141.96,141.92,0.69]
[1763522082657,2.99525092,141.96,141.92,0.69]
[1763522082860,12.75059638,141.99,141.93,2.29176869]
[1763522083063,12.75059638,141.99,141.93,64.09176869]
[1763522083259,0.70348223,141.98,141.94,0.7]
[1763522083473,28.57978769,141.99,141.94,4.92]
[1763522083984,27.90978769,141.99,141.95,0.7]
[1763522085684,2.96176869,142.0,141.95,62.5]
[1763522085886,3.66525092,142.0,141.95,62.5]
[1763522086073,3.66525092,142.0,141.96,0.7]
[1763522086272,3.66525092,142.0,141.96,62.5]
[1763522087081,2.99525092,142.0,141.96,62.5]
[1763522087284,0.67,141.99,141.96,61.8]
[1763522087474,0.70348223,141.98,141.96,61.8]
[1763522088676,1.37348223,141.98,141.96,61.8]
[1763522088868,0.70348223,141.98,141.96,61.8]
[1763522090781,0.70348223,141.98,141.96,62.5]
[1763522090967,0.70348223,141.98,141.96,61.8]
[1763522091389,0.70348223,141.98,141.95,62.5]
[1763522092089,2.96176869,141.99,141.95,62.5]
[1763522092689,0.70348223,141.98,141.95,62.5]
[1763522093587,0.2,142.02,141.96,7.21176869]
[1763522093588,0.67,142.0,141.96,7.21176869]
[1763522093770,0.67,142.0,141.97,4.22]
[1763522094573,9.78882769,141.99,141.95,2.29176869]
[1763522094768,9.78882769,141.99,141.96,4.22]
[1763522095090,24.83272869,142.02,141.93,20.89916616]
[1763522095091,9.78882769,141.95,141.93,20.89916616]
[1763522095273,15.67884345,141.94,141.85,0.7]
[1763522095479,2.29176869,141.87,141.83,0.7]
[1763522095688,2.29176869,141.85,141.83,0.7]
[1763522095880,2.29176869,141.86,141.83,0.7]